[Event "Live Chess"]
[Site "Chess.com"]
[Date "2023.05.21"]
[Round "-"]
[White "jimwad"]
[Black "lateforthesky"]
[Result "0-1"]
[WhiteElo "1222"]
[BlackElo "2098"]
[TimeControl "300"]
[EndTime "7:20:54 PDT"]
[Termination "lateforthesky won by resignation"]

1. c4 {[%clk 0:04:57.9]} 1... e5 {[%clk 0:04:58.4]} 2. g3 {[%clk 0:04:56.5]}
2... Nc6 {[%clk 0:04:57.6]} 3. Bg2 {[%clk 0:04:54.8]} 3... d6 {[%clk 0:04:57]}
4. Nc3 {[%clk 0:04:53.3]} 4... g6 {[%clk 0:04:55.6]} 5. e3 {[%clk 0:04:52.1]}
5... Bg7 {[%clk 0:04:54.2]} 6. Nge2 {[%clk 0:04:50.4]} 6... h5 {[%clk 0:04:53]}
7. h4 {[%clk 0:04:48.4]} 7... Nh6 {[%clk 0:04:49.4]} 8. O-O {[%clk 0:04:45]}
8... O-O {[%clk 0:04:48.4]} 9. d4 {[%clk 0:04:41.2]} 9... exd4 {[%clk
0:04:45.1]} 10. exd4 {[%clk 0:04:40.1]} 10... Nf5 {[%clk 0:04:44.1]} 11. Be3
{[%clk 0:04:30.5]} 11... Re8 {[%clk 0:04:37.8]} 12. Qd2 {[%clk 0:03:59.1]} 12...
Nxe3 {[%clk 0:04:25]} 13. fxe3 {[%clk 0:03:57.7]} 13... Bg4 {[%clk 0:04:18.8]}
14. Bxc6 {[%clk 0:03:43.3]} 14... bxc6 {[%clk 0:04:17]} 15. Nf4 {[%clk
0:03:41.6]} 15... Qe7 {[%clk 0:03:57.5]} 16. Rae1 {[%clk 0:03:39.4]} 16... Rab8
{[%clk 0:03:50.9]} 17. b3 {[%clk 0:03:37.5]} 17... Bh6 {[%clk 0:03:38.8]} 18.
Nce2 {[%clk 0:03:20.6]} 18... a5 {[%clk 0:03:14.7]} 19. Nc3 {[%clk 0:03:05.6]}
19... Qd7 {[%clk 0:02:58.6]} 20. Qf2 {[%clk 0:02:52]} 20... Re7 {[%clk
0:02:35.3]} 21. d5 {[%clk 0:02:44.2]} 21... c5 {[%clk 0:02:32.5]} 22. e4 {[%clk
0:02:22.5]} 22... Rbe8 {[%clk 0:02:31.1]} 23. Qc2 {[%clk 0:02:04]} 23... Bg7
{[%clk 0:02:25]} 24. Re3 {[%clk 0:01:52.1]} 24... Bxc3 {[%clk 0:02:20.5]} 25.
Qxc3 {[%clk 0:01:48.6]} 25... Rxe4 {[%clk 0:02:19.2]} 26. Rxe4 {[%clk
0:01:47.2]} 26... Rxe4 {[%clk 0:02:17.7]} 27. Re1 {[%clk 0:01:44.9]} 27... Qe7
{[%clk 0:02:14.3]} 28. Rxe4 {[%clk 0:01:42.8]} 28... Qxe4 {[%clk 0:02:13.4]} 29.
Kf2 {[%clk 0:01:36.3]} 29... Bf5 {[%clk 0:02:03.2]} 30. Qe3 {[%clk 0:01:33.3]}
30... Qxe3+ {[%clk 0:01:59.2]} 31. Kxe3 {[%clk 0:01:32.1]} 31... Bb1 {[%clk
0:01:58.7]} 32. a3 {[%clk 0:01:31.2]} 32... Ba2 {[%clk 0:01:56.6]} 33. b4 {[%clk
0:01:27.6]} 33... axb4 {[%clk 0:01:53.9]} 34. axb4 {[%clk 0:01:26.6]} 34... cxb4
{[%clk 0:01:52.8]} 35. Kd3 {[%clk 0:01:25.6]} 35... Bb1+ {[%clk 0:01:49.7]} 36.
Kd2 {[%clk 0:01:21.4]} 36... Kg7 {[%clk 0:01:47.5]} 37. Ne2 {[%clk 0:01:19.1]}
37... Kf6 {[%clk 0:01:40.7]} 38. Nd4 {[%clk 0:01:14.9]} 38... Ke5 {[%clk
0:01:35.5]} 39. Nb5 {[%clk 0:01:13.7]} 39... Ba2 {[%clk 0:01:19.9]} 40. Nxc7
{[%clk 0:01:11.6]} 40... Bxc4 {[%clk 0:01:17.2]} 41. Kc2 {[%clk 0:01:09.9]}
41... Bxd5 {[%clk 0:01:13.6]} 42. Nb5 {[%clk 0:01:01.6]} 42... Be6 {[%clk
0:01:09.9]} 43. Nc7 {[%clk 0:00:46.7]} 43... Ke4 {[%clk 0:01:06.1]} 44. Ne8
{[%clk 0:00:39.9]} 44... d5 {[%clk 0:01:03.1]} 45. Nf6+ {[%clk 0:00:38.6]} 45...
Kf3 {[%clk 0:01:00.5]} 0-1

[Event "Live Chess"]
[Site "Chess.com"]
[Date "2023.05.21"]
[Round "-"]
[White "HadesLearmonth"]
[Black "mattihelenius2"]
[Result "1-0"]
[WhiteElo "1210"]
[BlackElo "495"]
[TimeControl "300"]
[EndTime "7:20:54 PDT"]
[Termination "HadesLearmonth won by resignation"]

1. e4 {[%clk 0:04:59.4]} 1... e6 {[%clk 0:04:57.4]} 2. d4 {[%clk 0:04:58]} 2...
d5 {[%clk 0:04:56.8]} 3. e5 {[%clk 0:04:57.3]} 3... Nc6 {[%clk 0:04:53.5]} 4.
Nf3 {[%clk 0:04:56.2]} 4... Qe7 {[%clk 0:04:48.5]} 5. Bb5 {[%clk 0:04:53.3]}
5... Bd7 {[%clk 0:04:45.7]} 6. O-O {[%clk 0:04:52.3]} 6... f6 {[%clk 0:04:44.1]}
7. Nc3 {[%clk 0:04:50.9]} 7... fxe5 {[%clk 0:04:42.3]} 8. Nxe5 {[%clk
0:04:49.6]} 8... Nxe5 {[%clk 0:04:40]} 9. dxe5 {[%clk 0:04:46.8]} 9... Bxb5
{[%clk 0:04:38.9]} 10. Nxb5 {[%clk 0:04:46.1]} 10... c6 {[%clk 0:04:37.9]} 11.
Nc3 {[%clk 0:04:43.4]} 11... g6 {[%clk 0:04:32.6]} 12. Qg4 {[%clk 0:04:37.4]}
12... Nh6 {[%clk 0:04:24.6]} 13. Qh3 {[%clk 0:04:31.1]} 13... Qc5 {[%clk
0:04:12.3]} 14. Bxh6 {[%clk 0:04:26.9]} 14... Qe7 {[%clk 0:04:00.6]} 15. Bxf8
{[%clk 0:04:23.2]} 15... Qxf8 {[%clk 0:04:00.5]} 16. Qxe6+ {[%clk 0:04:21.2]}
16... Qe7 {[%clk 0:03:57.7]} 17. Qg4 {[%clk 0:04:10]} 17... Qxe5 {[%clk
0:03:55.8]} 18. Rae1 {[%clk 0:04:07.5]} 18... h5 {[%clk 0:03:51.5]} 19. Rxe5+
{[%clk 0:04:06.7]} 19... Kf7 {[%clk 0:03:47.8]} 1-0

[Event "Live Chess"]
[Site "Chess.com"]
[Date "2023.05.21"]
[Round "-"]
[White "Ocelot32"]
[Black "stevochess11"]
[Result "1-0"]
[WhiteElo "1418"]
[BlackElo "1661"]
[TimeControl "300"]
[EndTime "7:20:55 PDT"]
[Termination "Ocelot32 won by checkmate"]

1. e4 {[%clk 0:04:59.3]} 1... c5 {[%clk 0:04:58.2]} 2. Nf3 {[%clk 0:04:57.2]}
2... g6 {[%clk 0:04:57.1]} 3. c3 {[%clk 0:04:55.8]} 3... Bg7 {[%clk 0:04:55.9]}
4. d4 {[%clk 0:04:54]} 4... cxd4 {[%clk 0:04:55.8]} 5. cxd4 {[%clk 0:04:52.9]}
5... Nc6 {[%clk 0:04:55.5]} 6. e5 {[%clk 0:04:47.5]} 6... d6 {[%clk 0:04:54.8]}
7. Bf4 {[%clk 0:04:41.8]} 7... dxe5 {[%clk 0:04:51.4]} 8. dxe5 {[%clk
0:04:38.5]} 8... Qxd1+ {[%clk 0:04:49.5]} 9. Kxd1 {[%clk 0:04:36.9]} 9... Bg4
{[%clk 0:04:49.4]} 10. Be2 {[%clk 0:04:29]} 10... O-O-O+ {[%clk 0:04:44.9]} 11.
Kc2 {[%clk 0:04:24.9]} 11... Bxf3 {[%clk 0:04:43]} 12. Bxf3 {[%clk 0:04:23.6]}
12... Nxe5 {[%clk 0:04:39.2]} 13. Nc3 {[%clk 0:04:20.8]} 13... Nxf3 {[%clk
0:04:37.3]} 14. gxf3 {[%clk 0:04:18.9]} 14... Bxc3 {[%clk 0:04:36.2]} 15. Kxc3
{[%clk 0:04:17.2]} 15... f6 {[%clk 0:04:32.8]} 16. Rac1 {[%clk 0:04:15.1]} 16...
e5 {[%clk 0:04:30.6]} 17. Kb3+ {[%clk 0:04:08.6]} 17... Kb8 {[%clk 0:04:29.5]}
18. Be3 {[%clk 0:04:05.2]} 18... Ne7 {[%clk 0:04:27.9]} 19. Rc2 {[%clk
0:04:02.5]} 19... Nd5 {[%clk 0:04:26.7]} 20. Rhc1 {[%clk 0:03:59]} 20... f5
{[%clk 0:04:21.4]} 21. Rc5 {[%clk 0:03:54.9]} 21... Nxe3 {[%clk 0:04:16.4]} 22.
fxe3 {[%clk 0:03:53.8]} 22... Rd3+ {[%clk 0:04:14.5]} 23. Kb4 {[%clk 0:03:48.4]}
23... Rxe3 {[%clk 0:04:10.9]} 24. Rc7 {[%clk 0:03:46.9]} 24... Rxf3 {[%clk
0:04:08.1]} 25. Re7 {[%clk 0:03:43.9]} 25... Rf4+ {[%clk 0:04:06]} 26. Kb3
{[%clk 0:03:42]} 26... e4 {[%clk 0:04:03.9]} 27. Rcc7 {[%clk 0:03:40.4]} 27...
Rf3+ {[%clk 0:04:01.9]} 28. Kc4 {[%clk 0:03:38.9]} 28... Rf2 {[%clk 0:03:56.3]}
29. Rxb7+ {[%clk 0:03:36.7]} 29... Kc8 {[%clk 0:03:54.8]} 30. Rec7+ {[%clk
0:03:33.9]} 30... Kd8 {[%clk 0:03:53.8]} 31. Rd7+ {[%clk 0:03:30.6]} 31... Kc8
{[%clk 0:03:50.4]} 32. Rxa7 {[%clk 0:03:27.9]} 32... Rc2+ {[%clk 0:03:44.8]} 33.
Kb3 {[%clk 0:03:26.5]} 33... Rc6 {[%clk 0:03:39.5]} 34. Re7 {[%clk 0:03:21.6]}
34... Rb6+ {[%clk 0:03:36.4]} 35. Kc2 {[%clk 0:03:19.1]} 35... Rc6+ {[%clk
0:03:34.8]} 36. Kb1 {[%clk 0:03:18.5]} 36... Kb8 {[%clk 0:03:27.7]} 37. Reb7+
{[%clk 0:03:16.4]} 37... Kc8 {[%clk 0:03:25.6]} 38. Rd7 {[%clk 0:03:13.4]} 38...
Kb8 {[%clk 0:03:24.2]} 39. Rab7+ {[%clk 0:03:11.7]} 39... Ka8 {[%clk 0:03:23]}
40. Ra7+ {[%clk 0:03:10.1]} 40... Kb8 {[%clk 0:03:22]} 41. Rab7+ {[%clk
0:03:09.3]} 41... Kc8 {[%clk 0:03:21.2]} 42. Re7 {[%clk 0:03:06.9]} 42... Rd8
{[%clk 0:03:16.6]} 43. a3 {[%clk 0:03:03.5]} 43... Rd1+ {[%clk 0:03:13.4]} 44.
Ka2 {[%clk 0:03:02.3]} 44... Rd2 {[%clk 0:02:56.6]} 45. Rxh7 {[%clk 0:03:00.1]}
45... e3 {[%clk 0:02:53.1]} 46. Rbe7 {[%clk 0:02:55.3]} 46... e2 {[%clk
0:02:49.6]} 47. Re8+ {[%clk 0:02:53.6]} 47... Rd8 {[%clk 0:02:47]} 48. Rxe2
{[%clk 0:02:52.1]} 48... f4 {[%clk 0:02:43.8]} 49. Rf2 {[%clk 0:02:47.8]} 49...
g5 {[%clk 0:02:42.2]} 50. h4 {[%clk 0:02:45.2]} 50... g4 {[%clk 0:02:25.7]} 51.
Rxf4 {[%clk 0:02:44.1]} 51... g3 {[%clk 0:02:25.6]} 52. Rg4 {[%clk 0:02:37.2]}
52... Rd3 {[%clk 0:02:14.1]} 53. Rg8+ {[%clk 0:02:31.9]} 53... Rd8 {[%clk
0:02:12.4]} 54. Rxg3 {[%clk 0:02:30.8]} 54... Rb6 {[%clk 0:02:10.3]} 55. Rc3+
{[%clk 0:02:28.8]} 55... Kb8 {[%clk 0:02:09.1]} 56. Rb3 {[%clk 0:02:28]} 56...
Rxb3 {[%clk 0:02:07.6]} 57. Kxb3 {[%clk 0:02:26.8]} 57... Rd3+ {[%clk
0:02:07.5]} 58. Ka2 {[%clk 0:02:25.4]} 58... Rh3 {[%clk 0:02:05.5]} 59. a4
{[%clk 0:02:21.2]} 59... Kc8 {[%clk 0:02:05.4]} 60. b3 {[%clk 0:02:17.8]} 60...
Kd8 {[%clk 0:02:05.3]} 61. Ka3 {[%clk 0:02:16.9]} 61... Ke8 {[%clk 0:02:05.2]}
62. a5 {[%clk 0:02:15.8]} 62... Kf8 {[%clk 0:02:05.1]} 63. Ka4 {[%clk
0:02:14.4]} 63... Kg8 {[%clk 0:02:05]} 64. Rb7 {[%clk 0:01:59.3]} 64... Rxh4+
{[%clk 0:02:03.7]} 65. b4 {[%clk 0:01:57.9]} 65... Kf8 {[%clk 0:02:00.6]} 66. a6
{[%clk 0:01:56.9]} 66... Ke8 {[%clk 0:02:00.5]} 67. Ka5 {[%clk 0:01:55.8]} 67...
Kd8 {[%clk 0:02:00.4]} 68. b5 {[%clk 0:01:54.7]} 68... Kc8 {[%clk 0:02:00.3]}
69. Rg7 {[%clk 0:01:52.2]} 69... Rh1 {[%clk 0:01:56.6]} 70. Kb6 {[%clk
0:01:48.9]} 70... Rh6+ {[%clk 0:01:54.3]} 71. Ka5 {[%clk 0:01:47.7]} 71... Rh1
{[%clk 0:01:52.4]} 72. Rg4 {[%clk 0:01:43.1]} 72... Ra1+ {[%clk 0:01:50.1]} 73.
Ra4 {[%clk 0:01:42]} 73... Rb1 {[%clk 0:01:45.2]} 74. Rb4 {[%clk 0:01:39.9]}
74... Kb8 {[%clk 0:01:44]} 75. b6 {[%clk 0:01:37.2]} 75... Ra1+ {[%clk 0:01:42]}
76. Kb5 {[%clk 0:01:36.4]} 76... Ka8 {[%clk 0:01:39.7]} 77. Rc4 {[%clk 0:01:29]}
77... Rb1+ {[%clk 0:01:38.1]} 78. Kc6 {[%clk 0:01:19]} 78... Rd1 {[%clk
0:01:30.3]} 79. b7+ {[%clk 0:01:15.7]} 79... Ka7 {[%clk 0:01:28.8]} 80. Rb4
{[%clk 0:01:12.5]} 80... Rc1+ {[%clk 0:01:26.9]} 81. Kd7 {[%clk 0:01:11.4]}
81... Rd1+ {[%clk 0:01:22.9]} 82. Kc6 {[%clk 0:01:10.5]} 82... Rc1+ {[%clk
0:01:22.1]} 83. Kd5 {[%clk 0:01:09.2]} 83... Rd1+ {[%clk 0:01:21.2]} 84. Kc4
{[%clk 0:01:07.7]} 84... Rc1+ {[%clk 0:01:20.3]} 85. Kd3 {[%clk 0:01:06.2]}
85... Rd1+ {[%clk 0:01:19.5]} 86. Kc2 {[%clk 0:01:05.1]} 86... Rd8 {[%clk
0:01:19.4]} 87. Ra4 {[%clk 0:00:57.8]} 87... Rd6 {[%clk 0:01:10.1]} 88. Kc3
{[%clk 0:00:53.4]} 88... Rc6+ {[%clk 0:01:06.4]} 89. Kd4 {[%clk 0:00:51.8]}
89... Rh6 {[%clk 0:01:04.9]} 90. Kc5 {[%clk 0:00:50]} 90... Rh5+ {[%clk
0:01:03.6]} 91. Kc6 {[%clk 0:00:46]} 91... Rh6+ {[%clk 0:01:02.4]} 92. Kb5
{[%clk 0:00:42.1]} 92... Rh5+ {[%clk 0:01:01.1]} 93. Kc6 {[%clk 0:00:36.6]}
93... Rh6+ {[%clk 0:01:00.1]} 94. Kd7 {[%clk 0:00:36]} 94... Rh7+ {[%clk
0:00:57.3]} 95. Ke6 {[%clk 0:00:34.7]} 95... Rh6+ {[%clk 0:00:56.3]} 96. Kf7
{[%clk 0:00:34.2]} 96... Rh7+ {[%clk 0:00:55.4]} 97. Kg8 {[%clk 0:00:32.7]}
97... Rc7 {[%clk 0:00:53.9]} 98. Rb4 {[%clk 0:00:28.3]} 98... Kb8 {[%clk
0:00:47.4]} 99. Rf4 {[%clk 0:00:19.9]} 99... Ka7 {[%clk 0:00:39.6]} 100. Rf8
{[%clk 0:00:18.8]} 100... Kxa6 {[%clk 0:00:27.4]} 101. b8=Q {[%clk 0:00:17.5]}
101... Rc1 {[%clk 0:00:23.4]} 102. Rf2 {[%clk 0:00:13.5]} 102... Rg1+ {[%clk
0:00:21.4]} 103. Kh7 {[%clk 0:00:11.3]} 103... Rh1+ {[%clk 0:00:19.6]} 104. Kg6
{[%clk 0:00:10.4]} 104... Rg1+ {[%clk 0:00:18.8]} 105. Kh5 {[%clk 0:00:09.7]}
105... Rh1+ {[%clk 0:00:18.1]} 106. Kg4 {[%clk 0:00:08.9]} 106... Rg1+ {[%clk
0:00:17.5]} 107. Kh3 {[%clk 0:00:08]} 107... Rh1+ {[%clk 0:00:16.6]} 108. Kg2
{[%clk 0:00:07.2]} 108... Ra1 {[%clk 0:00:15]} 109. Rb2 {[%clk 0:00:05.1]}
109... Ra5 {[%clk 0:00:12.7]} 110. Qb6# {[%clk 0:00:03.7]} 1-0

[Event "Live Chess"]
[Site "Chess.com"]
[Date "2023.05.21"]
[Round "-"]
[White "gmnorfolk"]
[Black "BearFromUkraine"]
[Result "1-0"]
[WhiteElo "2129"]
[BlackElo "1073"]
[TimeControl "300"]
[EndTime "7:20:57 PDT"]
[Termination "gmnorfolk won by resignation"]

1. d4 {[%clk 0:04:58.3]} 1... d5 {[%clk 0:04:58.7]} 2. c4 {[%clk 0:04:56.9]}
2... e6 {[%clk 0:04:57.4]} 3. Nc3 {[%clk 0:04:55]} 3... Nf6 {[%clk 0:04:55.5]}
4. cxd5 {[%clk 0:04:52]} 4... exd5 {[%clk 0:04:53.7]} 5. Bg5 {[%clk 0:04:51.5]}
5... Be7 {[%clk 0:04:51.5]} 6. e3 {[%clk 0:04:50.9]} 6... O-O {[%clk 0:04:49]}
7. Bd3 {[%clk 0:04:48.9]} 7... h6 {[%clk 0:04:45.2]} 8. Bh4 {[%clk 0:04:46.9]}
8... Nc6 {[%clk 0:04:42.2]} 9. Nf3 {[%clk 0:04:38.2]} 9... Bg4 {[%clk
0:04:38.5]} 10. h3 {[%clk 0:04:35.8]} 10... Bh5 {[%clk 0:04:33.9]} 11. g4 {[%clk
0:04:34.5]} 11... Bg6 {[%clk 0:04:32.8]} 12. Bxg6 {[%clk 0:04:34]} 12... fxg6
{[%clk 0:04:32.2]} 13. g5 {[%clk 0:04:33.6]} 13... Ne4 {[%clk 0:04:24]} 14. Nxe4
{[%clk 0:04:31]} 14... dxe4 {[%clk 0:04:22.1]} 15. Nd2 {[%clk 0:04:25.9]} 15...
Bxg5 {[%clk 0:04:18.1]} 16. Bxg5 {[%clk 0:04:22.5]} 16... Qxg5 {[%clk
0:04:12.6]} 17. Qg4 {[%clk 0:04:19.4]} 17... Qxg4 {[%clk 0:04:03.1]} 18. hxg4
{[%clk 0:04:16.1]} 18... Rae8 {[%clk 0:03:56.3]} 19. Rc1 {[%clk 0:04:12.7]}
19... Re7 {[%clk 0:03:48.2]} 20. Ke2 {[%clk 0:04:07.2]} 20... Nd8 {[%clk
0:03:33.5]} 21. a3 {[%clk 0:04:00.5]} 21... Nf7 {[%clk 0:03:31.5]} 22. Rc5
{[%clk 0:03:55.7]} 22... Ng5 {[%clk 0:03:24.6]} 23. Rhc1 {[%clk 0:03:51.3]}
23... Ref7 {[%clk 0:03:16.1]} 24. Rf1 {[%clk 0:03:46.7]} 24... Nh3 {[%clk
0:03:11.7]} 25. Nxe4 {[%clk 0:03:43.3]} 25... c6 {[%clk 0:02:44.1]} 26. Re5
{[%clk 0:03:40.5]} 26... Kh7 {[%clk 0:02:17.7]} 27. f4 {[%clk 0:03:21.2]} 27...
g5 {[%clk 0:01:54.5]} 28. f5 {[%clk 0:03:15]} 28... g6 {[%clk 0:01:31.2]} 29. f6
{[%clk 0:03:01.2]} 29... h5 {[%clk 0:01:23.5]} 30. Re7 {[%clk 0:02:52.3]} 30...
hxg4 {[%clk 0:01:10.6]} 31. Nd6 {[%clk 0:02:51.1]} 31... Rxe7 {[%clk 0:01:04.3]}
32. fxe7 {[%clk 0:02:49.1]} 32... Rh8 {[%clk 0:01:00.9]} 33. Rf8 {[%clk
0:02:45.8]} 33... Kg7 {[%clk 0:00:57.7]} 34. Rxh8 {[%clk 0:02:42.6]} 34... Kxh8
{[%clk 0:00:57.6]} 1-0

[Event "Live Chess"]
[Site "Chess.com"]
[Date "2023.05.21"]
[Round "-"]
[White "Cimon"]
[Black "AbilifyXL"]
[Result "0-1"]
[WhiteElo "1839"]
[BlackElo "1975"]
[TimeControl "300"]
[EndTime "7:21:26 PDT"]
[Termination "AbilifyXL won by resignation"]

1. d4 {[%clk 0:04:58.2]} 1... d5 {[%clk 0:04:59.9]} 2. c4 {[%clk 0:04:56.3]}
2... c6 {[%clk 0:04:58.8]} 3. Nf3 {[%clk 0:04:54.4]} 3... Nf6 {[%clk 0:04:54.2]}
4. Nc3 {[%clk 0:04:53.2]} 4... a6 {[%clk 0:04:53.2]} 5. cxd5 {[%clk 0:04:48.3]}
5... cxd5 {[%clk 0:04:52.1]} 6. Bf4 {[%clk 0:04:46.9]} 6... Nc6 {[%clk
0:04:51.3]} 7. e3 {[%clk 0:04:44.8]} 7... Bg4 {[%clk 0:04:49.7]} 8. h3 {[%clk
0:04:43.3]} 8... Bf5 {[%clk 0:04:47.3]} 9. Bd3 {[%clk 0:04:40.7]} 9... Bxd3
{[%clk 0:04:46.2]} 10. Qxd3 {[%clk 0:04:39.7]} 10... e6 {[%clk 0:04:46.1]} 11.
a3 {[%clk 0:04:37.7]} 11... Bd6 {[%clk 0:04:45.4]} 12. Ne5 {[%clk 0:04:29.4]}
12... Bxe5 {[%clk 0:04:42.9]} 13. dxe5 {[%clk 0:04:28]} 13... Nd7 {[%clk
0:04:41.9]} 14. e4 {[%clk 0:04:03]} 14... Ndxe5 {[%clk 0:04:23.9]} 15. Qg3
{[%clk 0:03:59.8]} 15... Ng6 {[%clk 0:04:15]} 16. Bg5 {[%clk 0:03:51.8]} 16...
Qb6 {[%clk 0:04:06.7]} 17. exd5 {[%clk 0:03:43.9]} 17... Nce7 {[%clk 0:03:32.5]}
18. O-O {[%clk 0:03:11.1]} 18... O-O {[%clk 0:03:29.9]} 19. d6 {[%clk
0:03:01.5]} 19... Nf5 {[%clk 0:03:28.2]} 20. Qd3 {[%clk 0:02:45.6]} 20... Nxd6
{[%clk 0:03:23.5]} 21. b4 {[%clk 0:02:29]} 21... Nf5 {[%clk 0:03:08.5]} 22. Rad1
{[%clk 0:02:19.5]} 22... h6 {[%clk 0:03:01.3]} 23. Bc1 {[%clk 0:02:11.8]} 23...
Rad8 {[%clk 0:02:58]} 24. Qc4 {[%clk 0:02:06.5]} 24... Rc8 {[%clk 0:02:54.4]}
25. Qb3 {[%clk 0:02:02.2]} 25... Qc6 {[%clk 0:02:47.8]} 26. Ne2 {[%clk
0:01:43.2]} 26... Ngh4 {[%clk 0:02:26.1]} 27. f3 {[%clk 0:01:18.1]} 27... Rfd8
{[%clk 0:02:06.7]} 28. Bf4 {[%clk 0:01:11.9]} 28... g5 {[%clk 0:01:46.7]} 29.
Bh2 {[%clk 0:01:08.1]} 29... Qb6+ {[%clk 0:01:44.9]} 30. Kh1 {[%clk 0:01:05]}
30... Ne3 {[%clk 0:01:43.5]} 31. Rxd8+ {[%clk 0:00:57.3]} 31... Rxd8 {[%clk
0:01:42.6]} 32. Bg1 {[%clk 0:00:56]} 32... Nhxg2 {[%clk 0:01:39.3]} 33. Ng3
{[%clk 0:00:23.7]} 33... Qb5 {[%clk 0:01:24.4]} 34. Rc1 {[%clk 0:00:18.6]} 34...
Qe5 {[%clk 0:01:03.8]} 35. Ne4 {[%clk 0:00:16.8]} 35... Qf4 {[%clk 0:00:59]} 36.
Bxe3 {[%clk 0:00:14.5]} 36... Nxe3 {[%clk 0:00:57.8]} 37. Qb2 {[%clk 0:00:11.6]}
37... Qxf3+ {[%clk 0:00:56.1]} 38. Kg1 {[%clk 0:00:09]} 38... Qxe4 {[%clk
0:00:55]} 0-1

[Event "Live Chess"]
[Site "Chess.com"]
[Date "2023.05.21"]
[Round "-"]
[White "Tiltador"]
[Black "davigator"]
[Result "0-1"]
[WhiteElo "837"]
[BlackElo "2288"]
[TimeControl "300"]
[EndTime "7:21:33 PDT"]
[Termination "davigator won by checkmate"]

1. e4 {[%clk 0:04:54.3]} 1... c5 {[%clk 0:04:57.7]} 2. Nf3 {[%clk 0:04:53]} 2...
Nc6 {[%clk 0:04:57.1]} 3. Bb5 {[%clk 0:04:51.2]} 3... g6 {[%clk 0:04:55.4]} 4.
Bxc6 {[%clk 0:04:50]} 4... bxc6 {[%clk 0:04:53.4]} 5. O-O {[%clk 0:04:48.8]}
5... Bg7 {[%clk 0:04:52.3]} 6. d3 {[%clk 0:04:47.7]} 6... Nh6 {[%clk 0:04:47.4]}
7. c3 {[%clk 0:04:38.6]} 7... O-O {[%clk 0:04:45.5]} 8. Na3 {[%clk 0:04:35.6]}
8... d6 {[%clk 0:04:43.8]} 9. Nc4 {[%clk 0:04:33.8]} 9... f5 {[%clk 0:04:42.2]}
10. exf5 {[%clk 0:04:28.1]} 10... Nxf5 {[%clk 0:04:40.6]} 11. Be3 {[%clk
0:04:17.6]} 11... e5 {[%clk 0:04:39.1]} 12. d4 {[%clk 0:04:14]} 12... e4 {[%clk
0:04:37.6]} 13. Nfd2 {[%clk 0:04:10.1]} 13... d5 {[%clk 0:04:34.9]} 14. Ne5
{[%clk 0:04:07.6]} 14... Bxe5 {[%clk 0:04:26.2]} 15. dxe5 {[%clk 0:04:03.7]}
15... Qe7 {[%clk 0:04:24.9]} 16. f4 {[%clk 0:03:59.1]} 16... Nxe3 {[%clk
0:04:22.3]} 17. Qe2 {[%clk 0:03:51.4]} 17... Nxf1 {[%clk 0:04:18.7]} 18. Rxf1
{[%clk 0:03:49.9]} 18... Be6 {[%clk 0:04:14]} 19. b4 {[%clk 0:03:45.2]} 19...
cxb4 {[%clk 0:04:12.5]} 20. cxb4 {[%clk 0:03:44.1]} 20... Qxb4 {[%clk
0:04:12.1]} 21. Rd1 {[%clk 0:03:33.6]} 21... Rxf4 {[%clk 0:04:07.3]} 22. Nb3
{[%clk 0:03:30]} 22... Raf8 {[%clk 0:04:04.3]} 23. Qa6 {[%clk 0:03:22.9]} 23...
Qb6+ {[%clk 0:04:01.7]} 24. Qxb6 {[%clk 0:03:17.7]} 24... axb6 {[%clk
0:04:01.6]} 25. a4 {[%clk 0:03:14]} 25... c5 {[%clk 0:03:58.6]} 26. a5 {[%clk
0:03:12.3]} 26... d4 {[%clk 0:03:57.7]} 27. axb6 {[%clk 0:03:09.5]} 27... Bxb3
{[%clk 0:03:56.8]} 28. Rb1 {[%clk 0:03:03.1]} 28... Bc2 {[%clk 0:03:55.6]} 29.
Rc1 {[%clk 0:02:57.2]} 29... d3 {[%clk 0:03:50.5]} 30. b7 {[%clk 0:02:54.9]}
30... d2 {[%clk 0:03:49.3]} 31. Ra1 {[%clk 0:02:44.5]} 31... d1=Q+ {[%clk
0:03:47]} 32. Rxd1 {[%clk 0:02:41.4]} 32... Bxd1 {[%clk 0:03:46.7]} 33. h3
{[%clk 0:02:39.6]} 33... e3 {[%clk 0:03:40]} 34. Kh2 {[%clk 0:02:35.4]} 34... e2
{[%clk 0:03:38.6]} 35. g3 {[%clk 0:02:29.9]} 35... Rf2+ {[%clk 0:03:36.4]} 36.
Kg1 {[%clk 0:02:25]} 36... Rf1+ {[%clk 0:03:36.3]} 37. Kg2 {[%clk 0:02:22.9]}
37... R8f2# {[%clk 0:03:36.2]} 0-1

[Event "Live Chess"]
[Site "Chess.com"]
[Date "2023.05.21"]
[Round "-"]
[White "elizaveta_frundina"]
[Black "Daniel_Gliddon_FA"]
[Result "1-0"]
[WhiteElo "1580"]
[BlackElo "1197"]
[TimeControl "300"]
[EndTime "7:21:36 PDT"]
[Termination "elizaveta_frundina won by resignation"]

1. e4 {[%clk 0:04:57.9]} 1... d6 {[%clk 0:04:57.6]} 2. d4 {[%clk 0:04:55.8]}
2... Nf6 {[%clk 0:04:55.7]} 3. e5 {[%clk 0:04:54.7]} 3... dxe5 {[%clk
0:04:52.6]} 4. Nf3 {[%clk 0:04:51.1]} 4... e4 {[%clk 0:04:49.7]} 5. Ne5 {[%clk
0:04:50]} 5... Nbd7 {[%clk 0:04:32.5]} 6. Nxd7 {[%clk 0:04:41.4]} 6... Bxd7
{[%clk 0:04:30]} 7. Bc4 {[%clk 0:04:39]} 7... Bc6 {[%clk 0:04:18.5]} 8. O-O
{[%clk 0:04:29.4]} 8... e6 {[%clk 0:04:15.1]} 9. Bg5 {[%clk 0:04:21.6]} 9... Bd6
{[%clk 0:04:11.4]} 10. Nc3 {[%clk 0:04:06.4]} 10... Qe7 {[%clk 0:04:04]} 11. d5
{[%clk 0:03:56.7]} 11... exd5 {[%clk 0:03:58.3]} 12. Nxd5 {[%clk 0:03:54.8]}
12... Qe5 {[%clk 0:03:52.9]} 13. Bf4 {[%clk 0:03:34.3]} 13... Qh5 {[%clk
0:03:39.5]} 14. Nxf6+ {[%clk 0:03:24]} 1-0